fUST/lending_fUST_20250709
["ID","MTS","AMOUNT","RATE_DAILY","PERIOD"]
[370397946,1751997034158,-720.41,0.0002,2]
[370397947,1751997034168,-659.45,0.0002,2]
[370397948,1751997034177,-922.67,0.0002,2]
[370397949,1751997034187,-460.0,0.0002,2]
[370397950,1751997034201,-460.0,0.0002,2]
[370397951,1751997034213,-460.0,0.0002,2]
[370397952,1751997034223,-587.69,0.0002,2]
[370397953,1751997034233,-460.0,0.0002,2]
[370397954,1751997034243,-1096.64,0.0002,2]
[370397955,1751997034252,-485.78578196,0.0002,2]
[370397956,1751997034262,-460.0,0.0002,2]
[370397957,1751997034272,-460.0,0.0002,2]
[370397958,1751997034281,-585.36,0.0002,2]
[370397959,1751997034294,-460.0,0.0002,2]
[370397960,1751997034304,-460.0,0.0002,2]
[370397961,1751997034314,-167.82774,0.00020076,2]
[370397962,1751997034324,-1852.93819925,0.00020107,2]
[370397963,1751997034336,-467.348759,0.00020187,2]
[370397964,1751997034346,-167.82774,0.00020254,2]
[370397965,1751997034355,-460.0,0.00020273,2]
[370397966,1751997034367,-460.0,0.00020273,2]
[370397967,1751997034377,-485.02,0.00020273,2]
[370397968,1751997034387,-460.0,0.00020273,2]
[370397969,1751997034396,-664.0,0.00020273,2]
[370397970,1751997034406,-460.0,0.00020273,2]
[370397971,1751997034415,-1098.59,0.00020273,2]
[370397972,1751997034425,-803.89,0.00020273,2]
[370397973,1751997034435,-460.0,0.00020273,2]
[370397974,1751997034444,-460.0,0.00020273,2]
[370397975,1751997034454,-720.41,0.00020273,2]
[370397976,1751997034463,-659.45,0.00020273,2]
[370397977,1751997034473,-922.67,0.00020273,2]
[370397978,1751997034482,-460.0,0.00020273,2]
[370397979,1751997034492,-460.0,0.00020273,2]
[370397980,1751997034502,-460.0,0.00020273,2]
[370397981,1751997034512,-587.69,0.00020273,2]
[370397982,1751997034521,-460.0,0.00020273,2]
[370397983,1751997034532,-1096.64,0.00020273,2]
[370397984,1751997034542,-460.0,0.00020273,2]
[370397985,1751997034552,-460.0,0.00020273,2]
[370397986,1751997034562,-585.36,0.00020273,2]
[370397987,1751997034571,-460.0,0.00020273,2]
[370397988,1751997034581,-460.0,0.00020273,2]
[370397989,1751997034590,-500.0,0.00020291,2]
[370397990,1751997034600,-1000.0,0.00020291,2]
[370397991,1751997034609,-1852.93819925,0.00020348,3]
[370397992,1751997034619,-153.0,0.00020411,2]
[370397993,1751997034628,-153.0,0.00020411,2]
[370397994,1751997034638,-575.597667,0.00020411,2]
[370397995,1751997034647,-159.5204994,0.00020411,2]
[370397996,1751997034657,-159.5204994,0.00020411,2]
[370397997,1751997034667,-153.0,0.00020411,2]
[370397998,1751997034676,-153.0,0.00020411,2]
[370397999,1751997034686,-153.0,0.00020411,2]
[370398000,1751997034696,-159.5204994,0.00020411,2]
[370398001,1751997034705,-153.0,0.00020411,2]
[370398002,1751997034717,-159.5204994,0.00020411,2]
[370398003,1751997034727,-153.0,0.00020411,2]
[370398004,1751997034737,-153.0,0.00020411,2]
[370398005,1751997034746,-167.82774,0.00020431,2]
[370398006,1751997034755,-224.27284735,0.00020445,2]
[370398007,1751997034765,-281.0,0.00020456,2]
[370398008,1751997034775,-1680.0,0.00020457,2]
[370398009,1751997034785,-420.0,0.00020457,2]
[370398010,1751997034794,-300.0,0.00020457,2]
[370398011,1751997034804,-485.3583714,0.00020521,2]
[370398012,1751997034813,-460.0,0.00020547,2]
[370398013,1751997034823,-460.0,0.00020547,2]
[370398014,1751997034833,-485.02,0.00020547,2]
[370398015,1751997034845,-460.0,0.00020547,2]
[370398016,1751997034854,-664.0,0.00020547,2]
[370398017,1751997034864,-460.0,0.00020547,2]
[370398018,1751997034874,-1098.59,0.00020547,2]
[370398019,1751997034884,-803.89,0.00020547,2]
[370398020,1751997034894,-460.0,0.00020547,2]
[370398021,1751997034903,-460.0,0.00020547,2]
[370398022,1751997034913,-720.41,0.00020547,2]
[370398023,1751997034923,-659.45,0.00020547,2]
[370398024,1751997034933,-922.67,0.00020547,2]
[370398025,1751997034942,-460.0,0.00020547,2]
[370398026,1751997034953,-460.0,0.00020547,2]
[370398027,1751997034964,-460.0,0.00020547,2]
[370398028,1751997034974,-587.69,0.00020547,2]
[370398029,1751997034984,-460.0,0.00020547,2]
[370398030,1751997034993,-1096.64,0.00020547,2]
[370398031,1751997035003,-460.0,0.00020547,2]
[370398032,1751997035013,-460.0,0.00020547,2]
[370398033,1751997035022,-585.36,0.00020547,2]
[370398034,1751997035031,-460.0,0.00020547,2]
[370398035,1751997035041,-460.0,0.00020547,2]
[370398036,1751997035051,-1852.93819925,0.0002059,3]
[370398037,1751997035060,-167.82774,0.00020609,2]
[370398038,1751997035069,-150.0,0.00020634,2]
[370398039,1751997035079,-160.0,0.00020659,2]
[370398040,1751997035088,-848.40570879,0.00020659,2]
[370398041,1751997035099,-837.89306043,0.00020659,2]
[370398042,1751997035108,-215.2437778,0.00020659,2]
[370398043,1751997035118,-230.51100374,0.00020659,2]
[370398044,1751997035129,-160.0,0.00020659,2]
[370398045,1751997035138,-214.10276668,0.00020663,2]
[370398046,1751997035147,-919.271,0.00020739,2]
[370398047,1751997035157,-167.82774,0.00020787,2]
[370398048,1751997035167,-151.0,0.00020821,2]
[370398049,1751997035176,-374.024622,0.00020821,2]
[370398050,1751997035186,-151.0,0.00020821,2]
[370398051,1751997035195,-163.032429,0.00020821,2]
[370398052,1751997035204,-163.032429,0.00020821,2]
[370398053,1751997035214,-460.0,0.00020821,2]
[370398054,1751997035223,-339.7448023,0.00020821,2]
[370398055,1751997035233,-485.02,0.00020821,2]
[370398056,1751997035242,-607.99798216,0.00020821,2]
[370398057,1751997035441,-664.0,0.00020821,2]
[370398058,1751997035451,-330.3507638,0.00020821,2]
[370398059,1751997035461,-1098.59,0.00020821,2]
[370398060,1751997035471,-803.89,0.00020821,2]
[370398061,1751997035481,-460.0,0.00020821,2]
[370398062,1751997035492,-460.0,0.00020821,2]
[370398063,1751997035502,-720.41,0.00020821,2]
[370398064,1751997035512,-659.45,0.00020821,2]
[370398065,1751997035522,-922.67,0.00020821,2]
[370398066,1751997035532,-460.0,0.00020821,2]
[370398067,1751997035541,-460.0,0.00020821,2]
[370398068,1751997035550,-460.0,0.00020821,2]
[370398069,1751997035560,-587.69,0.00020821,2]
[370398070,1751997035569,-460.0,0.00020821,2]
[370398071,1751997035579,-1096.64,0.00020821,2]
[370398072,1751997035589,-460.0,0.00020821,2]
[370398073,1751997035598,-460.0,0.00020821,2]
[370398074,1751997035608,-585.36,0.00020821,2]
[370398075,1751997035618,-460.0,0.00020821,2]
[370398076,1751997035627,-460.0,0.00020821,2]
[370398077,1751997035636,-1852.93819925,0.00020831,4]
[370398078,1751997035645,-500.0,0.00020839,2]
[370398079,1751997035655,-500.0,0.00020864,2]
[370398080,1751997035665,-167.82774,0.00020964,2]
[370398081,1751997035674,-224.27284735,0.00020995,2]
[370398082,1751997035683,-1746.33751753,0.00021,2]
[370398083,1751997035692,-1852.93819925,0.00021072,4]
[370398084,1751997035701,-690.642,0.00021083,2]
[370398085,1751997035710,-207.4,0.00021083,2]
[370398086,1751997035719,-500.0,0.00021083,2]
[370398087,1751997035729,-500.0,0.00021083,2]
[370398088,1751997035738,-500.0,0.00021083,2]
[370398089,1751997035747,-500.0,0.00021083,2]
[370398090,1751997035756,-500.0,0.00021083,2]
[370398091,1751997035766,-500.0,0.00021083,2]
[370398092,1751997035775,-500.0,0.00021083,2]
[370398093,1751997035784,-151.0,0.00021083,2]
[370398094,1751997035794,-500.0,0.00021083,2]
[370398095,1751997035803,-151.0,0.00021083,2]
[370398096,1751997035812,-500.0,0.00021083,2]
[370398097,1751997035822,-151.0,0.00021083,2]
[370398098,1751997035831,-500.0,0.00021083,2]
[370398099,1751997035840,-151.0,0.00021083,2]
[370398100,1751997035849,-151.0,0.00021083,2]
[370398101,1751997035859,-16304.7644648,0.00021083,2]
[370398102,1751997035868,-151.0,0.00021083,2]
[370398103,1751997035878,-151.0,0.00021083,2]
[370398104,1751997035887,-151.0,0.00021083,2]
[370398105,1751997035896,-151.0,0.00021083,2]
[370398106,1751997035905,-151.0,0.00021083,2]
[370398107,1751997035914,-151.0,0.00021083,2]
[370398108,1751997035923,-151.0,0.00021083,2]
[370398109,1751997035934,-151.0,0.00021083,2]
[370398110,1751997035943,-160.442316,0.00021083,2]
[370398111,1751997035952,-160.442316,0.00021083,2]
[370398112,1751997035961,-151.0,0.00021095,2]
[370398113,1751997035970,-374.024622,0.00021095,2]
[370398114,1751997035979,-151.0,0.00021095,2]
[370398115,1751997035988,-163.032429,0.00021095,2]
[370398116,1751997035997,-163.032429,0.00021095,2]
[370398117,1751997036007,-460.0,0.00021095,2]
[370398118,1751997036016,-485.02,0.00021095,2]
[370398119,1751997036025,-664.0,0.00021095,2]
[370398120,1751997036034,-1098.59,0.00021095,2]
[370398121,1751997036043,-803.89,0.00021095,2]
[370398122,1751997036053,-460.0,0.00021095,2]
[370398123,1751997036062,-460.0,0.00021095,2]
[370398124,1751997036071,-720.41,0.00021095,2]
[370398125,1751997036080,-659.45,0.00021095,2]
[370398126,1751997036089,-922.67,0.00021095,2]
[370398127,1751997036098,-460.0,0.00021095,2]
[370398128,1751997036108,-460.0,0.00021095,2]
[370398129,1751997036117,-460.0,0.00021095,2]
[370398130,1751997036126,-587.69,0.00021095,2]
[370398131,1751997036135,-460.0,0.00021095,2]
[370398132,1751997036144,-1096.64,0.00021095,2]
[370398133,1751997036152,-460.0,0.00021095,2]
[370398134,1751997036161,-460.0,0.00021095,2]
[370398135,1751997036171,-585.36,0.00021095,2]
[370398136,1751997036180,-460.0,0.00021095,2]
[370398137,1751997036189,-460.0,0.00021095,2]
[370398138,1751997036198,-151.0,0.0002114,2]
[370398139,1751997036207,-151.0,0.0002114,2]
[370398140,1751997036217,-167.82774,0.00021142,2]
[370398141,1751997036226,-221.97357,0.00021198,4]
[370398142,1751997036236,-153.0,0.00021233,2]
[370398143,1751997036244,-153.0,0.00021233,2]
[370398144,1751997036253,-161.7261652,0.00021233,2]
[370398145,1751997036262,-153.0,0.00021233,2]
[370398146,1751997036271,-153.0,0.00021233,2]
[370398147,1751997036280,-153.0,0.00021233,2]
[370398148,1751997036293,-153.0,0.00021233,2]
[370398149,1751997036302,-153.0,0.00021233,2]
[370398150,1751997036311,-1852.93819925,0.00021314,5]
[370398151,1751997036321,-167.82774,0.0002132,2]
[370398152,1751997036330,-453.68684327,0.00021369,2]
[370398153,1751997036339,-485.02,0.00021369,2]
[370398154,1751997036349,-664.0,0.00021369,2]
[370398155,1751997036360,-1098.59,0.00021369,2]
[370398156,1751997036369,-803.89,0.00021369,2]
[370398157,1751997036378,-460.0,0.00021369,2]
[370398158,1751997036387,-460.0,0.00021369,2]
[370398159,1751997036396,-720.41,0.00021369,2]
[370398160,1751997036405,-659.45,0.00021369,2]
[370398161,1751997036414,-922.67,0.00021369,2]
[370398162,1751997036426,-460.0,0.00021369,2]
[370398163,1751997036435,-460.0,0.00021369,2]
[370398164,1751997036444,-460.0,0.00021369,2]
[370398165,1751997036453,-587.69,0.00021369,2]
[370398166,1751997036463,-460.0,0.00021369,2]
[370398167,1751997036472,-1096.64,0.00021369,2]
[370398168,1751997036482,-460.0,0.00021369,2]
[370398169,1751997036491,-460.0,0.00021369,2]
[370398170,1751997036500,-585.36,0.00021369,2]
[370398171,1751997036510,-460.0,0.00021369,2]
[370398172,1751997036519,-460.0,0.00021369,2]
[370398173,1751997036528,-1852.93819925,0.00021555,5]
[370398174,1751997036537,-384.57765768,0.00021631,2]
[370398175,1751997036546,-485.02,0.00021643,2]
[370398176,1751997036555,-664.0,0.00021643,2]
[370398177,1751997036564,-1098.59,0.00021643,2]
[370398178,1751997036573,-803.89,0.00021643,2]
[370398179,1751997036582,-460.0,0.00021643,2]
[370398180,1751997036591,-460.0,0.00021643,2]
[370398181,1751997036600,-720.41,0.00021643,2]
[370398182,1751997036610,-659.45,0.00021643,2]
[370398183,1751997036619,-922.67,0.00021643,2]
[370398184,1751997036627,-460.0,0.00021643,2]
[370398185,1751997036636,-460.0,0.00021643,2]
[370398186,1751997036645,-460.0,0.00021643,2]
[370398187,1751997036654,-587.69,0.00021643,2]
[370398188,1751997036663,-460.0,0.00021643,2]
[370398189,1751997036673,-1096.64,0.00021643,2]
[370398190,1751997036682,-460.0,0.00021643,2]
[370398191,1751997036691,-180.85210877,0.00021643,2]
[370398192,1751997036700,-585.36,0.00021643,2]
[370398193,1751997036710,-473.73031201,0.00021643,2]
[370398194,1751997036720,-460.0,0.00021643,2]
[370398195,1751997036729,-151.0,0.00021796,2]
[370398196,1751997036738,-151.0,0.00021796,2]
[370398197,1751997036747,-151.0,0.00021796,2]
[370398198,1751997036757,-151.0,0.00021796,2]
[370398199,1751997036766,-160.922161,0.00021796,2]
[370398200,1751997036775,-160.922161,0.00021796,2]
[370398201,1751997036784,-151.0,0.00021796,2]
[370398202,1751997036793,-151.0,0.00021796,2]
[370398203,1751997036802,-151.0,0.00021796,2]
[370398204,1751997036811,-1852.93819925,0.00021797,6]
[370398205,1751997036820,-500.0,0.00021917,2]
[370398206,1751997036829,-500.0,0.00021917,2]
[370398207,1751997036838,-151.0,0.00021917,2]
[370398208,1751997036847,-151.0,0.00021917,2]
[370398209,1751997036855,-151.0,0.00021917,2]
[370398210,1751997036865,-151.0,0.00021917,2]
[370398211,1751997036874,-151.0,0.00021917,2]
[370398212,1751997036883,-151.0,0.00021917,2]
[370398213,1751997036893,-204.305689,0.00021917,2]
[370398214,1751997036902,-204.305689,0.00021917,2]
[370398215,1751997036911,-151.0,0.00021917,2]
[370398216,1751997036920,-151.0,0.00021917,2]
[370398217,1751997036929,-151.0,0.00021917,2]
[370398218,1751997036938,-160.442316,0.00021917,2]
[370398219,1751997036947,-374.024622,0.00021917,2]
[370398220,1751997036955,-160.442316,0.00021917,2]
[370398221,1751997036967,-374.024622,0.00021917,2]
[370398222,1751997036976,-151.0,0.00021917,2]
[370398223,1751997036985,-163.032429,0.00021917,2]
[370398224,1751997036994,-163.032429,0.00021917,2]
[370398225,1751997037003,-485.02,0.00021917,2]
[370398226,1751997037011,-664.0,0.00021917,2]
[370398227,1751997037020,-1098.59,0.00021917,2]
[370398228,1751997037029,-803.89,0.00021917,2]
[370398229,1751997037038,-460.0,0.00021917,2]
[370398230,1751997037048,-460.0,0.00021917,2]
[370398231,1751997037056,-720.41,0.00021917,2]
[370398232,1751997037065,-659.45,0.00021917,2]
[370398233,1751997037074,-922.67,0.00021917,2]
[370398234,1751997037083,-460.0,0.00021917,2]
[370398235,1751997037091,-460.0,0.00021917,2]
[370398236,1751997037101,-460.0,0.00021917,2]
[370398237,1751997037110,-587.69,0.00021917,2]
[370398238,1751997037119,-460.0,0.00021917,2]
[370398239,1751997037128,-1096.64,0.00021917,2]
[370398240,1751997037137,-460.0,0.00021917,2]
[370398241,1751997037146,-585.36,0.00021917,2]
[370398242,1751997037155,-460.0,0.00021917,2]
[370398243,1751997037165,-200.0,0.00021918,2]
[370398244,1751997037174,-178.92493938,0.00021918,2]
[370398245,1751997037184,-151.0,0.00021918,7]
[370398246,1751997037193,-151.0,0.00021918,7]
[370398247,1751997037202,-500.0,0.00021918,2]
[370398248,1751997037213,-500.0,0.00021918,2]
[370398249,1751997037222,-500.0,0.00021918,2]
[370398250,1751997037231,-500.0,0.00021918,2]
[370398251,1751997037241,-500.0,0.00021918,2]
[370398252,1751997037250,-500.0,0.00021918,2]
[370398253,1751997037259,-500.0,0.00021918,2]
[370398254,1751997037268,-500.0,0.00021918,2]
[370398255,1751997037277,-500.0,0.00021918,2]
[370398256,1751997037289,-500.0,0.00021918,2]
[370398257,1751997037298,-500.0,0.00021918,2]
[370398258,1751997037308,-500.0,0.00021918,2]
[370398259,1751997037317,-500.0,0.00021918,2]
[370398260,1751997037328,-500.0,0.00021918,2]
[370398261,1751997037337,-500.0,0.00021918,2]
[370398262,1751997037347,-422.6079469,0.00021918,2]
[370398263,1751997037357,-500.0,0.00021918,2]
[370398264,1751997037367,-500.0,0.00021918,2]
[370398265,1751997037377,-500.0,0.00021918,2]
[370398266,1751997037386,-500.0,0.00021918,2]
[370398267,1751997037396,-250.0,0.00021918,2]
[370398268,1751997037405,-500.0,0.00021918,2]
[370398269,1751997037415,-500.0,0.00021918,2]
[370398270,1751997037424,-500.0,0.00021918,2]
[370398271,1751997037434,-3746.10071689,0.0002199,2]
[370398272,1751997037443,-220.0,0.00022,2]
[370398273,1751997037453,-1852.93819925,0.00022038,6]
[370398274,1751997037464,-502.28694814,0.00022067,2]
[370398275,1751997037475,-500.0,0.00022067,2]
[370398276,1751997037484,-500.0,0.00022067,2]
[370398277,1751997037493,-151.0,0.00022191,7]
[370398279,1751997037503,-485.02,0.00022191,2]
[370398280,1751997037512,-664.0,0.00022191,2]
[370398281,1751997037521,-1098.59,0.00022191,2]
[370398282,1751997037530,-803.89,0.00022191,2]
[370398283,1751997037539,-460.0,0.00022191,2]
[370398284,1751997037549,-381.90724894,0.00022191,2]
[370398285,1751997037558,-720.41,0.00022191,2]
[370398286,1751997037568,-659.45,0.00022191,2]
[370398287,1751997037578,-922.67,0.00022191,2]
[370398288,1751997037587,-494.81,0.00022191,2]
[370398289,1751997037596,-460.0,0.00022191,2]
[370398290,1751997037606,-460.0,0.00022191,2]
[370398291,1751997037615,-587.69,0.00022191,2]
[370398292,1751997037625,-460.0,0.00022191,2]
[370398293,1751997037634,-1096.64,0.00022191,2]
[370398294,1751997037643,-460.0,0.00022191,2]
[370398295,1751997037652,-585.36,0.00022191,2]
[370398296,1751997037661,-460.0,0.00022191,2]
[370398297,1751997037670,-220.0,0.00022192,7]
[370398299,1751997037680,-967.0,0.00022225,2]
[370398300,1751997037689,-2153.0,0.00022225,2]
[370398301,1751997037699,-646.0,0.00022225,2]
[370398302,1751997037709,-407.0,0.00022225,2]
[370398303,1751997037719,-1852.93819925,0.00022279,6]
[370398304,1751997037728,-2351.0,0.00022303,2]
[370398305,1751997037737,-587.0,0.00022303,2]
[370398306,1751997037746,-151.0,0.00022383,7]
[370398307,1751997037755,-403.584055,0.00022383,7]
[370398308,1751997037764,-403.584055,0.00022383,7]
[370398309,1751997037773,-151.0,0.00022383,7]
[370398310,1751997037782,-151.0,0.00022415,7]
[370398311,1751997037792,-204.743575,0.00022415,7]
[370398312,1751997037801,-215.0738,0.00022452,2]
[370398313,1751997037810,-241.0,0.00022452,2]
[370398314,1751997037820,-485.02,0.00022465,2]
[370398315,1751997037829,-664.0,0.00022465,2]
[370398316,1751997037838,-1098.59,0.00022465,2]
[370398317,1751997037847,-803.89,0.00022465,2]
[370398318,1751997037857,-460.0,0.00022465,2]
[370398319,1751997037866,-720.41,0.00022465,2]
[370398320,1751997037875,-659.45,0.00022465,2]
[370398321,1751997037884,-922.67,0.00022465,2]
[370398322,1751997037893,-460.0,0.00022465,2]
[370398323,1751997037903,-460.0,0.00022465,2]
[370398324,1751997037913,-587.69,0.00022465,2]
[370398325,1751997037922,-460.0,0.00022465,2]
[370398326,1751997037932,-1096.64,0.00022465,2]
[370398327,1751997037941,-460.0,0.00022465,2]
[370398329,1751997037950,-585.36,0.00022465,2]
[370398331,1751997037959,-460.0,0.00022465,2]
[370398333,1751997037969,-501.11070705,0.00022489,2]
[370398335,1751997037978,-500.0,0.00022489,2]
[370398337,1751997037988,-500.0,0.00022489,2]
[370398339,1751997037997,-500.0,0.00022489,2]
[370398340,1751997038006,-1852.93819925,0.00022521,7]
[370398342,1751997038016,-150.0,0.00022525,2]
[370398344,1751997038025,-1346.36,0.00022553,2]
[370398346,1751997038035,-241.0,0.00022596,2]
[370398348,1751997038044,-1000.0,0.00022615,2]
[370398350,1751997038053,-1000.0,0.00022615,2]
[370398352,1751997038062,-200.0,0.0002263,6]
[370398354,1751997038071,-163.75489393,0.00022639,2]
[370398356,1751997038080,-1346.36,0.00022653,5]
[370398358,1751997038089,-241.0,0.00022736,2]
[370398360,1751997038098,-151.0,0.00022739,7]
[370398362,1751997038107,-151.0,0.00022739,7]
[370398364,1751997038116,-151.0,0.00022739,7]
[370398366,1751997038126,-485.02,0.00022739,2]
[370398368,1751997038135,-664.0,0.00022739,2]
[370398370,1751997038145,-1098.59,0.00022739,2]
[370398372,1751997038154,-803.89,0.00022739,2]
[370398374,1751997038164,-460.0,0.00022739,2]
[370398376,1751997038173,-720.41,0.00022739,2]
[370398378,1751997038182,-659.45,0.00022739,2]
[370398380,1751997038192,-922.67,0.00022739,2]
[370398382,1751997038201,-460.0,0.00022739,2]
[370398384,1751997038210,-460.0,0.00022739,2]
[370398386,1751997038219,-587.69,0.00022739,2]
[370398388,1751997038228,-460.0,0.00022739,2]
[370398390,1751997038237,-1096.64,0.00022739,2]
[370398392,1751997038247,-460.0,0.00022739,2]
[370398394,1751997038256,-585.36,0.00022739,2]
[370398396,1751997038265,-553.7105048,0.00022739,2]
[370398397,1751997038275,-1346.36,0.00022753,7]
[370398399,1751997038290,-151.0,0.00022762,7]
[370398400,1751997038299,-151.0,0.00022762,7]
[370398402,1751997038308,-1852.93819925,0.00022762,7]
[370398404,1751997038317,-241.0,0.00022806,2]
[370398406,1751997038328,-241.0,0.00022811,2]
[370398408,1751997038337,-241.0,0.00022829,2]
[370398410,1751997038347,-1346.36,0.00022853,3]
[370398412,1751997038357,-213.48311703,0.000229,3]
[370398414,1751997038368,-12586.7184932,0.000229,3]
[370398416,1751997038377,-160.0,0.000229,3]
[370398417,1751997038386,-848.40570879,0.000229,3]
[370398418,1751997038395,-1346.36,0.00022953,5]
[370398420,1751997038405,-241.0,0.00022989,2]
[370398422,1751997038414,-2000.0,0.00023,2]
[370398423,1751997038423,-2000.0,0.00023,2]
[370398425,1751997038432,-160.0,0.00023,3]
[370398427,1751997038441,-837.89306043,0.00023,3]
[370398429,1751997038453,-160.0,0.00023,3]
[370398431,1751997038462,-230.51100374,0.00023,3]
[370398432,1751997038471,-330.7415064,0.00023,2]
[370398433,1751997038481,-215.2437778,0.00023,3]
[370398434,1751997038492,-1852.93819925,0.00023003,8]
[370398435,1751997038500,-151.0,0.00023013,7]
[370398436,1751997038509,-151.0,0.00023013,2]
[370398437,1751997038519,-374.024622,0.00023013,7]
[370398438,1751997038529,-374.024622,0.00023013,7]
[370398439,1751997038540,-151.0,0.00023013,7]
[370398440,1751997038549,-163.032429,0.00023013,7]
[370398441,1751997038559,-163.032429,0.00023013,7]
[370398442,1751997038568,-485.02,0.00023013,2]
[370398443,1751997038578,-664.0,0.00023013,2]
[370398444,1751997038587,-1098.59,0.00023013,2]
[370398445,1751997038597,-803.89,0.00023013,2]
[370398446,1751997038607,-460.0,0.00023013,2]
[370398447,1751997038616,-720.41,0.00023013,2]
[370398448,1751997038625,-659.45,0.00023013,2]
[370398449,1751997038635,-922.67,0.00023013,2]
[370398450,1751997038644,-460.0,0.00023013,2]
[370398451,1751997038654,-460.0,0.00023013,2]
[370398452,1751997038663,-587.69,0.00023013,2]
[370398453,1751997038802,-460.0,0.00023013,2]
[370398454,1751997038812,-1096.64,0.00023013,2]
[370398455,1751997038821,-460.0,0.00023013,2]
[370398456,1751997038830,-585.36,0.00023013,2]
[370398457,1751997038840,-220.0,0.00023014,7]
[370398458,1751997038849,-241.0,0.00023017,2]
[370398459,1751997038858,-500.0,0.00023037,2]
[370398460,1751997038867,-500.0,0.00023037,2]
[370398461,1751997038876,-1000.0,0.00023037,2]
[370398462,1751997038885,-1346.36,0.00023053,4]
[370398463,1751997038894,-241.0,0.00023088,2]
[370398464,1751997038903,-12586.7184932,0.000231,7]
[370398465,1751997038912,-160.0,0.000231,7]
[370398466,1751997038921,-652.0,0.0002312,2]
[370398467,1751997038929,-204.305689,0.00023142,7]
[370398468,1751997038938,-204.305689,0.00023142,7]
[370398469,1751997038947,-151.0,0.00023142,7]
[370398470,1751997038956,-151.0,0.00023142,7]
[370398471,1751997038966,-160.442316,0.00023142,7]
[370398472,1751997038975,-160.442316,0.00023142,7]
[370398473,1751997038984,-652.0,0.00023142,2]
[370398474,1751997038993,-1346.36,0.00023153,2]
[370398475,1751997039002,-151.0,0.00023188,7]
[370398476,1751997039011,-151.0,0.00023188,7]
[370398477,1751997039020,-151.0,0.00023188,7]
[370398478,1751997039029,-1605.0,0.000232,2]
[370398479,1751997039038,-1605.0,0.000232,2]
[370398480,1751997039047,-1605.0,0.000232,2]
[370398481,1751997039056,-1605.0,0.000232,2]
[370398482,1751997039066,-1605.0,0.000232,2]
[370398483,1751997039075,-1605.0,0.000232,2]
[370398484,1751997039084,-1605.0,0.000232,2]
[370398485,1751997039093,-1605.0,0.000232,2]
[370398486,1751997039102,-1605.0,0.000232,2]
[370398487,1751997039111,-1605.0,0.000232,2]
[370398488,1751997039121,-151.0,0.000232,7]
[370398489,1751997039132,-233.882407,0.000232,7]
[370398490,1751997039141,-151.0,0.000232,7]
[370398491,1751997039151,-231.879186,0.000232,7]
[370398492,1751997039160,-151.0,0.000232,7]
[370398493,1751997039170,-151.0,0.000232,7]
[370398494,1751997039180,-151.0,0.000232,7]
[370398495,1751997039190,-151.0,0.000232,7]
[370398496,1751997039200,-151.0,0.000232,7]